bitfinex/quotes_ETHUSD_20250110
["timestamp","ask_amount","ask_price","bid_price","bid_amount"]
[1736536623439,3.04054,3288.9,3288.2,0.7245548]
[1736536623590,5.38,3289.0,3288.3,0.8211]
[1736536624379,5.38,3289.0,3288.3,0.85150803]
[1736536624589,5.38,3289.0,3288.4,0.22607813]
[1736536625535,8.42049,3289.0,3288.4,0.22607813]
[1736536625746,5.38,3289.0,3288.4,0.22607813]
[1736536625886,5.38,3289.0,3288.6,0.62077178]
[1736536627202,5.38,3289.0,3288.7,0.8211]
[1736536628433,3.04026,3289.2,3288.7,0.8211]
[1736536628586,3.1684588,3289.4,3288.7,0.85150395]
[1736536628784,0.1684588,3289.4,3288.7,0.85150395]
[1736536629009,0.1684588,3289.4,3288.7,0.85150103]
[1736536629422,0.1684588,3289.4,3288.8,0.45129828]
[1736536630039,0.1684588,3289.4,3288.7,0.8211]
[1736536630730,0.1684588,3289.4,3288.8,0.03040109]
[1736536630886,0.1684588,3289.4,3288.7,3.86181]
[1736536631091,0.1684588,3289.4,3289.1,0.60013212]
[1736536631929,0.1684588,3289.4,3289.2,0.78960108]
[1736536632321,0.1684588,3289.4,3287.6,3.0492]
[1736536632322,3.04016,3289.3,3288.9,0.7592]
[1736536632625,3.2085488,3289.4,3288.4,3.83916]
[1736536632828,3.2085488,3289.4,3288.5,0.43902076]
[1736536632990,0.1684588,3289.4,3288.7,0.61821646]
[1736536633389,3.08447633,3289.0,3288.4,0.7982]
[1736536633554,0.0075,3288.9,3288.5,0.22498986]
[1736536633751,3.04806,3288.9,3288.5,0.22498986]
[1736536633897,5.38,3289.1,3288.5,0.22498986]
[1736536634935,5.38,3289.1,3288.2,0.60938741]
[1736536635311,5.38,3289.1,3288.3,0.0304075]
[1736536635695,5.38,3289.1,3288.4,0.7511]
[1736536635899,5.38,3289.1,3288.5,0.4126589]
[1736536636695,8.42036,3289.1,3288.5,0.247]
[1736536636895,5.38,3289.1,3288.5,0.27740565]
[1736536637317,3.04025,3289.2,3288.5,0.27740565]
[1736536637668,0.0075,3289.3,3288.5,0.247]
[1736536637868,3.04024,3289.3,3288.5,0.27740565]
[1736536638161,3.2085288,3289.4,3288.6,0.40694957]
[1736536639460,3.2085288,3289.4,3288.6,0.63239227]
[1736536639639,3.04045,3289.0,3288.6,0.2254427]
[1736536639972,5.395,3289.1,3288.6,0.2254427]
[1736536640250,3.04071,3288.7,3288.6,0.2254427]
[1736536640406,3.04071,3288.7,3288.1,0.59930588]
[1736536640980,5.38,3289.1,3288.2,0.03041028]
[1736536641186,5.38,3289.1,3288.3,0.7943]
[1736536641483,5.38,3289.1,3288.5,0.7501]
[1736536641785,3.04045,3289.0,3288.5,0.7501]
[1736536642084,5.38,3289.1,3288.6,0.247]
[1736536642289,0.1684588,3289.4,3288.7,3.64896709]
[1736536642472,0.1684588,3289.4,3288.8,0.42304007]
[1736536642855,0.1684588,3289.4,3288.9,0.824]
[1736536643212,0.1684588,3289.4,3289.0,0.03040027]
[1736536643501,0.1684588,3289.4,3288.9,1.04965382]
[1736536645397,0.1684588,3289.4,3289.0,0.58669994]
[1736536646262,0.1684588,3289.4,3289.0,0.76703366]
[1736536646462,0.1684588,3289.4,3289.0,0.58669994]
[1736536646668,3.04025,3289.2,3289.0,0.58669994]
[1736536646997,3.04025,3289.2,3289.1,0.58669994]
[1736536647351,8.42025,3289.2,3289.1,0.58669994]
[1736536648386,8.42025,3289.2,3289.1,0.22565382]
[1736536648552,8.44275,3289.2,3289.1,0.22565382]
[1736536649092,11.99275,3289.2,3289.1,0.22565382]
[1736536649247,6.12522633,3288.7,3287.8,0.7804]
[1736536649440,3.08447633,3288.7,3287.9,0.61386071]
[1736536649658,3.04124,3288.2,3287.9,0.61386071]
[1736536649906,0.0075,3288.3,3287.7,0.247]
[1736536650182,3.04121,3288.2,3287.7,0.247]
[1736536650386,3.04121,3288.2,3287.8,0.26715434]
[1736536650587,0.0225,3288.3,3287.8,0.26715434]
[1736536650750,3.04145,3287.9,3287.8,0.26715434]
[1736536651082,3.04895,3287.9,3287.8,0.26715434]
[1736536651847,0.0225,3287.8,3287.3,0.26715434]
[1736536652059,3.04188,3287.5,3287.3,0.26715434]
[1736536652385,0.0075,3287.6,3287.3,0.26715434]
[1736536652602,3.04926,3287.6,3287.3,0.26715434]
[1736536653548,3.04926,3287.6,3287.2,3.10119206]
[1736536653549,3.04183,3287.5,3287.2,3.10119206]
[1736536653803,3.06451,3287.3,3287.2,3.10119206]
[1736536654310,3.04986,3287.0,3286.4,0.7668]
[1736536654499,3.04255,3286.8,3286.4,0.7668]
[1736536654787,0.0075,3286.8,3286.1,0.7684]
[1736536655088,8.42259,3286.7,3286.1,0.7684]
[1736536655255,5.38,3286.7,3286.1,0.7684]
[1736536655456,5.38,3286.7,3286.1,0.92956396]
[1736536656095,5.38,3286.7,3286.2,0.03043006]
[1736536656300,5.38,3286.7,3286.2,3.07342626]
[1736536656835,5.38,3286.7,3286.2,0.03042626]
[1736536657138,5.38,3286.7,3286.1,0.7684]
[1736536657837,5.38,3286.7,3286.1,1.23693486]
[1736536658136,5.38,3286.7,3286.2,0.27742861]
[1736536658438,3.04236,3287.0,3286.2,0.247]
[1736536658599,5.38,3287.1,3286.2,0.27742649]
[1736536658939,0.0075,3286.8,3286.1,0.7684]
[1736536659235,3.05006,3286.8,3286.1,0.7684]
[1736536659562,0.0075,3286.8,3286.1,0.7684]
[1736536659713,3.04301,3286.3,3286.0,0.59623961]
[1736536659931,8.42301,3286.3,3285.7,0.7889]
[1736536660723,8.42301,3286.3,3285.7,1.40922886]
[1736536661096,3.04303,3286.2,3285.7,1.40922886]
[1736536661777,0.0075,3286.2,3285.7,1.40922886]
[1736536662951,5.38,3286.3,3285.7,1.40922886]
[1736536663616,8.42295,3286.3,3285.7,1.40922886]
[1736536663954,5.38,3286.3,3285.7,1.40922886]
[1736536664333,0.0075,3286.3,3285.7,1.40922886]
[1736536665734,0.0075,3286.3,3285.1,3.0]
[1736536665922,5.3875,3285.9,3285.2,0.7582]
[1736536666124,5.38,3285.6,3284.8,0.7582]
[1736536666322,3.04369,3285.5,3284.8,0.7582]
[1736536666950,5.38,3285.6,3284.8,0.7582]
[1736536667148,5.38,3285.6,3284.9,0.41839575]
[1736536667469,5.38,3285.6,3285.1,1.38339234]
[1736536667622,5.38,3285.6,3285.1,4.42736234]
[1736536667824,5.38,3285.6,3285.1,1.38339234]
[1736536668261,5.38,3285.6,3285.4,3.04375]
[1736536668440,0.0075,3286.3,3285.5,4.130525]
[1736536668441,5.3875,3286.3,3285.5,4.130525]
[1736536668663,5.3875,3286.3,3285.5,4.377525]
[1736536669366,0.0075,3286.0,3285.5,1.0295]
[1736536669525,3.05073,3286.0,3285.5,1.0295]
[1736536669725,3.0433,3285.9,3285.5,0.247]
[1736536670162,0.015,3286.0,3285.5,0.247]
[1736536670653,5.38,3286.3,3285.6,0.8094]
[1736536670837,0.8181,3286.6,3285.8,3.04338]
[1736536671043,0.015,3286.8,3285.9,0.304338]
[1736536671276,3.0,3286.5,3285.6,3.85295]
[1736536671569,6.1725,3286.9,3285.7,0.03043088]
[1736536671772,6.1725,3286.9,3285.9,3.04323]
[1736536671973,5.38,3287.2,3286.4,3.04282]
[1736536672170,5.38,3287.2,3286.6,0.7731]
[1736536672581,8.42216,3287.2,3286.6,0.7731]
[1736536673174,5.38,3287.5,3286.6,0.7731]
[1736536673373,5.38,3287.5,3286.8,3.04246]
[1736536673603,3.04181,3287.6,3286.9,0.304246]
[1736536673767,3.04181,3287.6,3286.6,4.41278131]
[1736536673965,3.04184,3287.5,3286.6,4.41278131]
[1736536674508,3.0,3287.9,3286.6,1.40060406]
[1736536674725,6.04148,3287.9,3286.7,0.7757]
[1736536675006,6.04148,3287.9,3287.2,0.8165]
[1736536675007,0.0075,3287.8,3287.2,0.8165]
[1736536675403,3.04167,3287.7,3287.3,0.03042095]
[1736536675699,3.04177,3287.6,3287.0,0.61634004]
[1736536675860,0.015,3287.5,3286.8,0.8152]
[1736536676064,3.04207,3287.3,3286.8,0.8152]
[1736536676460,0.0075,3287.3,3286.5,0.8187]
[1736536676703,3.04245,3286.9,3286.2,0.8187]
[1736536677008,3.04245,3286.9,3286.3,1.4826672]
[1736536677979,3.04221,3287.1,3286.3,1.4826672]
[1736536678195,3.04221,3287.1,3286.3,1.03029507]
[1736536678499,3.04221,3287.1,3286.4,0.2660076]
[1736536678714,0.015,3287.1,3286.4,0.2660076]
[1736536678883,8.42261,3286.7,3286.4,0.2660076]
[1736536679213,5.38,3286.7,3286.4,0.2660076]
[1736536679609,5.38,3286.7,3286.5,3.04271]
[1736536679792,5.38,3286.7,3286.6,0.33391455]
[1736536680499,5.38,3286.7,3286.6,0.45237213]
[1736536680882,5.38,3286.7,3286.6,1.04291235]
[1736536681519,5.38,3286.7,3286.6,1.73557579]
[1736536682120,5.38,3287.7,3286.6,2.55537579]
[1736536682445,5.38,3288.0,3287.2,0.8198]
[1736536682599,5.38,3288.0,3287.4,3.04182]
[1736536682929,3.04822,3288.7,3287.7,3.04159]
[1736536683082,6.1961,3289.1,3287.8,0.03041128]
[1736536683281,6.1961,3289.1,3287.9,0.7719]
[1736536683282,9.23645,3289.1,3287.9,0.7719]
[1736536683481,9.23645,3289.1,3288.0,3.04136]
[1736536683795,3.04055,3288.9,3287.9,3.81334]
[1736536683995,3.04072,3288.7,3288.0,0.381334]
[1736536684196,0.015,3288.8,3287.9,1.46456344]
[1736536684427,3.04086,3288.6,3287.9,1.46456344]
[1736536684613,3.04096,3288.5,3288.1,0.59054022]
[1736536685716,0.0225,3288.3,3288.1,0.59054022]
[1736536685898,6.04877,3288.1,3288.0,0.45237213]
[1736536686336,0.0075,3288.0,3287.6,0.79006521]
[1736536686747,3.04109,3288.3,3287.6,0.79006521]
[1736536687287,3.0,3288.4,3287.6,0.42665584]
[1736536687456,3.0,3288.4,3287.7,0.80831364]
[1736536687827,3.0,3288.4,3287.7,0.7779]
[1736536688027,0.0075,3288.4,3287.7,0.7779]
[1736536688464,3.04851,3288.4,3287.8,0.22659333]
[1736536688779,0.0225,3288.4,3287.8,0.22659333]
[1736536688989,3.04129,3288.1,3287.8,0.22659333]
[1736536689191,0.0075,3288.1,3287.8,0.22659333]
[1736536689466,11.99395,3287.9,3287.8,0.22659333]
[1736536689832,11.97895,3287.9,3286.9,0.247]
[1736536690033,3.0,3287.6,3286.9,0.247]
[1736536690894,0.0225,3287.4,3286.9,0.247]
[1736536691169,0.0075,3287.3,3286.8,0.2264689]
[1736536691339,0.7522,3287.5,3286.8,0.2264689]
[1736536691540,3.04165,3287.7,3286.9,0.7585]
[1736536691753,3.04165,3287.7,3286.9,1.16124789]
[1736536692470,0.0075,3287.7,3286.9,0.7585]
[1736536692675,3.04212,3287.2,3287.0,0.2264689]
[1736536693337,3.04969,3287.1,3287.0,0.2264689]
[1736536694012,6.04969,3287.1,3287.0,0.2264689]
[1736536694309,3.04276,3286.5,3286.1,0.7523]
[1736536694811,3.04284,3286.4,3286.1,0.7523]
[1736536695374,0.0075,3286.7,3286.1,0.7523]
[1736536695711,0.0075,3286.5,3286.1,0.7523]
[1736536695932,3.05027,3286.5,3286.1,0.7523]
[1736536696086,0.0075,3286.5,3286.1,0.7523]
[1736536696286,3.05025,3286.5,3286.1,0.7523]
[1736536697018,3.05768,3286.6,3286.1,0.7523]
[1736536697186,3.05768,3286.6,3285.9,0.247]
[1736536697187,8.4228,3286.5,3285.9,0.247]
[1736536697588,0.0075,3286.4,3285.8,1.39588961]
[1736536697789,5.3875,3286.3,3285.8,0.78]
[1736536697976,8.43047,3286.3,3285.8,0.78]
[1736536699003,3.04304,3286.2,3285.6,0.59888192]
[1736536700314,3.04304,3286.2,3285.5,0.247]
[1736536701347,5.38,3286.3,3285.6,0.2572922]
[1736536701550,5.38,3286.3,3285.8,3.04338]
[1736536701734,5.38,3286.3,3285.9,0.44189926]
[1736536701934,5.38,3286.3,3285.7,1.37561258]
[1736536702136,5.38,3286.3,3285.7,4.41902258]
[1736536702336,5.38,3286.3,3285.8,0.0304323]
[1736536702641,5.38,3287.6,3286.5,0.7635]
[1736536702842,3.04194,3287.4,3286.5,0.7635]
[1736536703016,3.04194,3287.4,3286.6,0.380632]
[1736536703409,8.42176,3287.6,3286.6,0.380632]
[1736536703656,8.42176,3287.6,3286.7,0.03042239]
[1736536703824,3.04189,3287.5,3286.6,0.380632]
[1736536704030,5.38,3287.6,3286.8,3.04246]
[1736536704242,3.04124,3288.2,3287.0,0.8128]
[1736536704419,0.0075,3288.1,3287.3,3.042]
[1736536704926,0.0075,3288.3,3287.1,3.04215]
[1736536705139,3.04138,3288.0,3287.1,3.04215]
[1736536705522,3.04146,3287.9,3287.0,0.8128]
[1736536705729,3.0354526,3287.9,3287.4,0.22676519]
[1736536706551,3.0,3288.4,3287.5,0.7831]
[1736536706758,3.04099,3288.4,3287.5,0.7831]
[1736536707056,3.04108,3288.3,3287.6,0.6225797]
[1736536707226,5.38,3288.5,3287.5,0.7831]
[1736536707227,0.0075,3288.4,3287.5,0.7831]
[1736536707556,3.04893,3288.0,3287.1,0.7831]
[1736536707920,0.0075,3287.9,3287.1,0.7831]
[1736536708151,3.79598,3288.1,3287.1,3.82526]
[1736536708352,3.04128,3288.1,3287.2,0.60052099]
[1736536708552,3.0,3288.3,3287.4,3.04183]
[1736536708739,3.7547,3288.4,3287.5,0.30722485]
[1736536708968,3.04113,3288.3,3287.5,0.30722485]
[1736536709138,3.0,3288.4,3287.5,0.30722485]
[1736536709339,3.0,3288.4,3287.5,0.33763976]
[1736536709640,3.04111,3288.3,3287.3,3.04197]
[1736536710258,3.0,3288.4,3287.6,0.8252]
[1736536711098,6.04106,3288.4,3287.6,0.8252]
[1736536712276,11.42106,3288.4,3287.6,0.8252]
[1736536713280,3.04109,3288.3,3287.6,0.8252]
[1736536713489,8.38,3288.4,3287.6,1.21494849]
[1736536713797,11.42107,3288.4,3287.6,1.21494849]
[1736536714001,3.0411,3288.3,3287.6,1.21494849]
[1736536714482,8.38,3288.4,3287.6,1.21494849]
[1736536714483,8.38,3288.4,3287.6,1.41951752]
[1736536714784,3.04119,3288.2,3287.6,1.41951752]
[1736536715960,3.04108,3288.3,3287.6,1.41951752]
[1736536717554,3.04118,3288.2,3287.6,1.41951752]
[1736536718361,0.0075,3288.3,3287.6,1.41951752]
[1736536718561,0.0075,3288.3,3287.6,0.8252]
[1736536718562,0.015,3288.3,3287.6,0.8252]
[1736536718794,3.04139,3288.0,3287.6,0.8252]
[1736536719005,0.015,3288.3,3287.6,0.8252]
[1736536719155,3.04127,3288.1,3287.6,0.8252]
[1736536720398,8.42156,3287.8,3286.9,3.83966674]
[1736536720552,8.42156,3287.8,3287.0,0.38396667]
[1736536720758,3.04164,3287.7,3286.9,0.7669]
[1736536720957,5.38,3287.8,3287.0,0.03041913]
[1736536721258,5.38,3287.8,3287.4,0.7669]
[1736536721795,5.38,3288.6,3287.4,0.79731625]
[1736536721994,5.38,3288.6,3288.1,0.8324]
[1736536722180,3.04046,3289.0,3288.2,0.387374]
[1736536722181,5.38,3289.0,3288.2,0.387374]
[1736536722379,3.04054,3288.9,3288.2,0.387374]
[1736536722570,5.38,3289.0,3288.2,0.387374]
[1736536722792,8.42046,3289.0,3288.2,0.387374]
[1736536722999,3.04055,3288.9,3288.2,0.387374]
[1736536724223,5.38,3289.0,3288.2,0.387374]
[1736536724425,5.38,3289.0,3288.3,0.60055669]
[1736536724626,5.38,3289.0,3288.4,0.030409]
[1736536724831,5.38,3289.0,3288.5,0.8211]
[1736536725895,5.38,3289.2,3288.7,3.8222]
[1736536726091,0.1684588,3289.4,3288.8,0.81190325]
[1736536726332,0.1684588,3289.4,3288.9,0.38526033]
[1736536726494,0.1684588,3289.4,3289.0,0.247]
[1736536726934,0.1684588,3289.4,3289.1,0.60973233]
[1736536728953,0.1684588,3289.4,3289.0,0.247]
[1736536729159,3.0477,3289.3,3289.0,0.247]
[1736536729357,0.1684588,3289.4,3289.0,0.247]
[1736536729824,3.2085288,3289.4,3289.0,0.247]
[1736536730535,0.1684588,3289.4,3289.0,0.247]
[1736536731632,0.015,3289.3,3289.0,0.247]
[1736536731826,3.04034,3289.1,3289.0,0.247]
[1736536732032,3.04784,3289.1,3289.0,0.247]
[1736536732229,0.0075,3289.0,3288.5,0.8089]
[1736536732739,0.0075,3289.0,3288.6,0.62173894]
[1736536735737,3.04034,3289.1,3288.6,0.62173894]
[1736536735945,5.3875,3289.3,3288.6,0.62173894]
[1736536736164,8.42018,3289.3,3288.6,0.62173894]
[1736536736984,3.04026,3289.2,3288.6,0.62173894]
[1736536737678,3.04026,3289.2,3288.7,0.22721466]
[1736536737878,5.38,3289.3,3288.7,0.39300002]
[1736536738768,5.38,3289.3,3288.8,0.03040478]
[1736536738969,5.38,3289.3,3288.9,3.04049]
[1736536739282,0.1684588,3289.4,3289.0,0.84590135]
[1736536739444,0.1684588,3289.4,3289.1,0.8155]
[1736536739648,0.1684588,3289.4,3289.2,0.247]
[1736536739981,0.1684588,3289.4,3289.2,3.28721]
[1736536740166,0.1684588,3289.4,3289.3,0.410271]
[1736536740582,0.1684588,3289.4,3289.3,0.247]
[1736536740945,0.1684588,3289.4,3289.3,0.51367183]
[1736536741356,0.1684588,3289.4,3289.3,0.74088649]
[1736536741561,3.03907,3290.5,3289.6,0.7708]
[1736536741755,3.0,3290.3,3289.6,0.7708]
[1736536741978,0.0075,3290.1,3289.6,0.7708]
[1736536742184,3.03959,3290.0,3289.3,1.57298649]
[1736536742870,3.03959,3290.0,3289.4,0.26667183]
[1736536743183,0.0075,3290.1,3289.4,0.49388649]
[1736536743558,3.03951,3290.0,3289.4,0.49388649]
[1736536743963,3.03962,3289.9,3289.4,0.49388649]
[1736536744546,3.03962,3289.9,3289.3,1.19567162]
[1736536744547,3.03962,3289.9,3289.5,0.22721466]
[1736536744747,3.03952,3290.0,3289.5,0.22721466]
[1736536744977,3.0075,3290.1,3289.5,0.22721466]
[1736536745181,3.04694,3290.1,3289.5,0.22721466]
[1736536745560,3.04694,3290.1,3289.3,0.8321]
[1736536746424,3.04694,3290.1,3289.3,1.19515891]
[1736536746585,3.03959,3290.0,3289.3,1.19515891]
[1736536746891,3.03966,3289.9,3289.3,1.19515891]
[1736536747788,3.03952,3290.0,3289.3,1.19515891]
[1736536748285,3.03952,3290.0,3289.4,0.22695273]
[1736536749152,3.03988,3289.6,3289.4,0.22695273]
[1736536749486,0.0075,3289.5,3289.2,0.36305891]
[1736536749786,3.04752,3289.5,3289.2,0.36305891]
[1736536749951,3.04007,3289.4,3289.2,0.36305891]
[1736536750366,0.0075,3289.5,3289.2,0.36305891]
[1736536750593,0.0075,3289.5,3289.0,0.26647463]
[1736536751371,3.04015,3289.4,3289.0,0.26647463]
[1736536751908,0.0075,3289.5,3289.0,0.26647463]
[1736536752207,0.0075,3289.4,3289.1,0.26647463]
[1736536752411,6.61275,3289.2,3289.1,0.26647463]
[1736536752614,7.43915,3289.2,3289.1,0.26647463]
[1736536752913,7.43915,3289.2,3289.1,0.49386958]
[1736536753608,7.43915,3289.2,3289.1,0.22739495]
[1736536754472,7.43915,3289.2,3288.3,0.22739495]
[1736536754473,3.04849,3288.4,3288.3,0.22739495]
[1736536755075,0.0075,3288.4,3288.3,0.22739495]
[1736536755306,6.83855,3289.0,3288.3,0.22739495]
[1736536755673,0.0075,3288.9,3288.0,0.25780478]
[1736536755875,3.0,3288.8,3288.1,0.7663]
[1736536756090,0.0075,3288.9,3288.1,0.7663]
[1736536756300,0.0075,3288.9,3288.2,0.40654648]
[1736536756677,0.0075,3289.0,3288.2,0.40654648]
[1736536756880,3.04794,3289.0,3288.2,0.40654648]
[1736536757110,3.04794,3289.0,3288.1,0.7663]
[1736536757490,3.04794,3289.0,3288.3,0.4941648]
[1736536758515,3.04794,3289.0,3288.3,1.10624003]
[1736536758820,3.04794,3289.0,3288.3,0.26676985]
[1736536759315,3.04794,3289.0,3288.2,0.22739495]
[1736536759613,3.04794,3289.0,3288.2,0.63089944]
[1736536759811,3.04794,3289.0,3288.2,0.40350449]
[1736536761176,3.04074,3288.7,3288.3,0.22725563]
[1736536761429,3.04797,3289.0,3288.3,0.22725563]
[1736536761590,3.0075,3288.8,3288.3,0.22725563]
[1736536761890,3.04098,3288.5,3288.3,0.22725563]
[1736536762511,6.06349,3288.4,3288.3,0.22725563]
[1736536762818,6.61349,3288.4,3288.3,0.22725563]
[1736536763005,3.04154,3287.9,3287.5,0.7633]
[1736536763412,3.0075,3288.0,3287.5,0.7633]
[1736536763614,3.0416,3287.8,3287.5,0.7633]
[1736536764382,0.0075,3287.7,3287.2,0.794]
[1736536766627,3.04182,3287.5,3287.2,0.794]
[1736536767311,3.04917,3287.7,3287.2,0.794]
[1736536767512,3.04174,3287.6,3287.2,0.794]
[1736536768525,0.0075,3287.7,3287.2,0.794]
[1736536769028,3.04915,3287.7,3287.2,0.794]
[1736536769396,3.04175,3287.6,3287.2,0.794]
[1736536769728,3.04195,3287.4,3287.0,0.6084002]
[1736536770313,0.7575,3287.7,3287.0,0.6084002]
[1736536770653,3.04176,3287.6,3287.0,0.6084002]
[1736536772095,0.0075,3287.7,3287.0,0.6084002]
[1736536772299,3.04915,3287.7,3287.0,0.6084002]
[1736536773234,3.04175,3287.6,3287.0,0.6084002]
[1736536773786,3.04192,3287.4,3287.0,0.6084002]
[1736536774028,3.04192,3287.4,3286.9,0.7909]
[1736536774029,0.0225,3287.5,3286.9,0.7909]
[1736536774186,0.0225,3287.3,3286.3,0.247]
[1736536774393,3.04233,3287.0,3286.3,0.247]
[1736536775127,3.04233,3287.0,3286.5,0.61111482]
[1736536775286,0.0075,3287.1,3286.3,0.247]
[1736536775488,3.04969,3287.1,3286.3,0.65606]
[1736536775784,3.04969,3287.1,3286.4,0.6003326]
[1736536779687,3.04236,3287.0,3286.4,0.6003326]
[1736536779906,0.0075,3287.1,3286.4,0.6003326]
[1736536779907,3.04238,3286.9,3286.4,0.6003326]
[1736536780232,3.04972,3287.1,3286.4,0.6003326]
[1736536780539,3.0423,3287.0,3286.4,0.6003326]
[1736536782229,0.0075,3287.1,3286.4,0.6003326]
[1736536782419,3.04973,3287.1,3286.4,0.6003326]
[1736536784137,0.55,3287.3,3286.4,0.6003326]
[1736536784138,6.04206,3287.3,3286.5,0.809]
[1736536784320,3.0,3287.4,3286.7,0.809]
[1736536784500,3.0,3287.4,3286.7,1.194156]
[1736536784700,0.015,3287.3,3286.7,0.809]
[1736536785101,3.04238,3286.9,3286.5,0.247]
[1736536786554,3.04238,3286.9,3286.4,0.809]
[1736536787319,3.04247,3286.8,3286.4,0.809]
[1736536787517,3.04262,3286.7,3286.4,0.809]
[1736536787746,8.42992,3286.9,3286.0,0.03042854]
[1736536787945,5.38,3286.9,3286.2,0.8152]
[1736536788145,0.0075,3287.3,3286.4,3.85801]
[1736536788146,3.04202,3287.3,3286.4,3.85801]
[1736536788345,3.04185,3287.5,3286.6,0.8152]
[1736536788547,3.0,3287.2,3286.6,0.8152]
[1736536789492,3.04187,3287.5,3286.6,3.8882733]
[1736536789649,0.0075,3287.5,3286.7,3.45411444]
[1736536789852,5.38,3287.6,3286.9,3.04229]
[1736536790046,8.4214,3288.0,3287.1,3.04219]
[1736536790248,0.0075,3287.9,3287.2,0.8152]
[1736536790454,3.04155,3287.8,3287.2,0.8152]
[1736536790936,3.04155,3287.8,3287.3,0.22727114]
[1736536791620,3.04165,3287.7,3287.3,0.22727114]
[1736536791817,3.04165,3287.7,3287.2,0.8152]
[1736536792037,3.04899,3287.9,3287.2,0.8152]
[1736536792395,0.0075,3287.9,3287.2,0.8152]
[1736536792595,3.04165,3287.7,3287.2,0.8152]
[1736536793039,3.04165,3287.7,3287.3,0.2672441]
[1736536793199,3.04167,3287.7,3287.3,0.2672441]
[1736536794435,3.04167,3287.7,3287.2,0.8152]
[1736536794635,3.015,3287.9,3287.2,0.8152]
[1736536794949,0.015,3287.6,3286.8,1.069]
[1736536795103,3.04237,3287.0,3286.5,0.822]
[1736536796520,3.04237,3287.0,3286.6,0.49506044]
[1736536796744,5.38,3287.2,3286.6,0.49506044]
[1736536796745,3.04241,3286.9,3286.6,0.49506044]
[1736536797054,3.05006,3286.7,3286.6,0.49506044]
[1736536797504,8.44506,3286.7,3286.6,0.22780754]
[1736536798061,0.0075,3286.6,3286.3,0.22780754]
[1736536798527,3.04277,3286.5,3286.3,0.22780754]
[1736536799086,3.05777,3286.5,3286.4,0.2672427]
[1736536799849,5.38,3286.7,3286.4,0.2672427]
[1736536800385,3.04278,3286.5,3286.1,0.7546]
[1736536800567,3.05038,3286.4,3286.1,0.7546]
[1736536800862,0.0075,3286.4,3286.1,0.7546]
[1736536801195,3.05025,3286.5,3286.1,0.7546]
[1736536802062,5.38,3286.4,3286.1,0.7546]
[1736536805623,5.38,3286.4,3286.2,3.04295]
[1736536805838,5.38,3286.4,3286.3,0.379755]
[1736536806158,5.38,3286.4,3286.1,0.7546]
[1736536806571,5.38,3286.4,3286.3,0.26703824]
[1736536806809,5.38,3286.4,3286.3,0.49463067]
[1736536808116,5.38,3286.9,3286.3,0.49463067]
[1736536808311,5.38,3286.9,3286.4,0.35376107]
[1736536808518,5.38,3286.9,3286.4,3.39658107]
[1736536808661,5.38,3286.9,3286.5,0.76]
[1736536809914,5.38,3286.9,3286.6,0.26703824]
[1736536810771,3.04224,3287.1,3286.6,0.26703824]
[1736536810772,8.42205,3287.3,3286.6,0.26703824]
[1736536810972,5.38,3287.3,3286.6,0.26703824]
[1736536811227,5.38,3287.3,3286.5,0.76]
[1736536811431,8.42201,3287.3,3286.5,3.8027]
[1736536811610,5.38,3287.6,3286.7,0.8062]
[1736536811768,5.38,3287.8,3287.0,3.0422]
[1736536811974,5.38,3287.8,3287.1,3.04218]
[1736536812238,5.38,3287.8,3286.7,3.04256]
[1736536812239,5.38,3287.8,3287.3,3.04199]
[1736536812369,5.38,3288.3,3287.4,3.89111602]
[1736536812685,5.38,3288.3,3287.6,0.8188]
[1736536812887,8.42109,3288.3,3287.6,0.8188]
[1736536813071,5.38,3288.3,3287.7,0.60558802]
[1736536814778,5.38,3288.3,3287.6,0.8188]
[1736536815142,0.0225,3288.2,3287.6,0.8188]
[1736536815318,0.0075,3288.0,3287.3,0.826]
[1736536815671,3.04889,3288.0,3287.3,0.826]
[1736536815911,3.04159,3287.8,3287.3,0.826]
[1736536816982,8.42159,3287.8,3287.3,0.826]
[1736536817240,5.38,3287.8,3287.2,0.246]
[1736536817414,0.015,3287.4,3286.6,0.8088]
[1736536817708,3.04212,3287.2,3286.6,0.8088]
[1736536818443,0.015,3287.3,3286.6,0.8088]
[1736536818592,3.04224,3287.1,3286.6,0.8088]
[1736536819428,3.04235,3287.0,3286.6,0.8088]
[1736536819622,3.04963,3287.2,3286.6,0.8088]
[1736536820047,0.0075,3287.2,3286.6,0.8088]
[1736536820189,0.0075,3287.2,3286.5,0.246]
[1736536820541,3.04237,3287.0,3286.5,0.246]
[1736536823147,8.42237,3287.0,3286.5,0.246]
[1736536823590,0.7888,3287.0,3286.3,0.8123]
[1736536823793,0.0075,3286.8,3286.0,0.611317]
[1736536824046,3.0075,3286.7,3285.9,0.802]
[1736536824552,3.04997,3286.8,3285.9,0.802]
[1736536824553,0.0075,3286.5,3285.9,0.802]
[1736536825392,5.38,3286.6,3285.9,0.802]
[1736536825709,3.7813,3287.0,3286.2,3.04302]
[1736536825710,5.38,3287.0,3286.2,3.04302]
[1736536826060,5.38,3287.0,3286.4,3.04283]
[1736536826356,5.38,3287.0,3286.3,0.3347287]
[1736536826357,5.38,3287.0,3286.6,0.7579]
[1736536826497,5.38,3287.0,3286.8,0.7909]
[1736536827033,5.38,3287.0,3286.9,0.26662526]
[1736536827241,5.38,3287.0,3286.9,0.45842409]
[1736536827551,8.42175,3287.6,3286.9,0.45842409]
[1736536828453,5.38,3287.6,3286.9,0.68567707]
[1736536828609,3.04194,3287.4,3286.9,0.68567707]